bitfinex/quotes_SOLUSD_20241110
["timestamp","ask_amount","ask_price","bid_price","bid_amount"]
[1731249658211,6.373,205.91,205.61,3.6816]
[1731249658360,6.373,205.89,205.61,0.1]
[1731249658562,15.7752,205.88,205.59,5.0639]
[1731249658778,6.373,205.87,205.59,4.9639]
[1731249658972,6.373,205.85,205.57,4.9643]
[1731249659161,6.373,205.83,205.58,0.1]
[1731249659979,6.373,205.83,205.56,17.0262]
[1731249660180,14.73539632,205.83,205.56,17.0262]
[1731249660360,6.373,205.81,205.51,16.2653]
[1731249660560,6.373,205.79,205.51,4.9657]
[1731249660761,6.373,205.79,205.52,0.2]
[1731249660973,6.373,205.79,205.54,0.1]
[1731249661181,6.373,205.79,205.51,17.0305]
[1731249661490,15.7752,205.76,205.46,17.0345]
[1731249661658,15.7752,205.74,205.46,17.0345]
[1731249661863,6.373,205.71,205.46,12.1675]
[1731249662488,6.373,205.71,205.43,4.8678]
[1731249662693,6.373,205.69,205.43,4.8678]
[1731249663065,6.373,205.69,205.41,4.8681]
[1731249663281,22.9202,205.68,205.41,4.8681]
[1731249663582,6.615,205.67,205.41,4.8681]
[1731249663877,16.3052,205.66,205.4,12.1708]
[1731249664073,22.9202,205.64,205.36,17.0431]
[1731249664266,6.615,205.62,205.36,17.0431]
[1731249664660,8.09091668,205.68,205.31,12.1766]
[1731249664661,6.615,205.6,205.31,12.1766]
[1731249664874,6.615,205.57,205.33,0.1]
[1731249665083,6.615,205.57,205.33,0.2]
[1731249665261,6.615,205.57,205.34,0.1]
[1731249666079,6.615,205.57,205.31,4.8706]
[1731249666282,6.615,205.57,205.33,0.1]
[1731249666781,16.3052,205.56,205.33,0.1]
[1731249667273,0.1,205.59,205.24,12.2808]
[1731249667479,6.615,205.51,205.25,0.1]
[1731249667980,6.615,205.51,205.26,0.1]
[1731249668190,6.615,205.51,205.28,0.1]
[1731249668361,6.615,205.51,205.28,4.9713]
[1731249668970,6.615,205.51,205.29,23.776884]
[1731249669287,6.615,205.51,205.24,12.3808]
[1731249669288,6.615,205.51,205.23,0.1]
[1731249669465,16.3052,205.5,205.23,24.8724]
[1731249669664,6.615,205.49,205.23,24.8724]
[1731249669864,6.615,205.49,205.26,0.1]
[1731249670377,6.615,205.49,205.26,4.8716]
[1731249670563,6.615,205.49,205.28,0.1]
[1731249670889,6.615,205.49,205.28,23.876884]
[1731249671068,6.615,205.49,205.29,20.0]
[1731249671269,6.615,205.49,205.31,0.1]
[1731249671665,6.615,205.49,205.33,0.1]
[1731249672170,6.615,205.49,205.35,0.1]
[1731249672390,6.615,205.49,205.34,23.776884]
[1731249672686,6.615,205.49,205.32,23.776884]
[1731249673294,6.615,205.49,205.3,23.776884]
[1731249673487,6.615,205.49,205.3,23.876884]
[1731249674590,6.615,205.49,205.34,0.1]
[1731249674761,6.615,205.49,205.37,0.1]
[1731249675766,6.615,205.49,205.38,23.776884]
[1731249677002,6.615,205.49,205.38,28.645684]
[1731249678199,6.615,205.49,205.38,40.818184]
[1731249678387,14.71,205.75,205.41,0.1]
[1731249678606,16.3052,205.73,205.44,0.1]
[1731249678772,16.3052,205.71,205.46,0.1]
[1731249678970,6.615,205.7,205.46,0.1]
[1731249679173,16.3052,205.67,205.41,0.1]
[1731249679374,6.615,205.66,205.41,0.1]
[1731249679674,6.615,205.64,205.41,0.1]
[1731249679884,6.615,205.64,205.41,20.1]
[1731249680191,6.615,205.62,205.42,28.644884]
[1731249680487,6.615,205.62,205.42,40.814984]
[1731249681103,6.615,205.62,205.43,0.1]
[1731249681392,6.615,205.62,205.45,0.1]
[1731249681785,6.615,205.62,205.47,20.0]
[1731249682088,6.615,205.62,205.46,23.776884]
[1731249682283,6.615,205.62,205.38,24.3445]
[1731249682673,6.615,205.6,205.38,24.3445]
[1731249683198,6.0425,205.56,205.33,4.8702]
[1731249683392,6.0425,205.54,205.32,12.1758]
[1731249683792,6.0425,205.5,205.26,12.2792]
[1731249684090,11.20373073,205.5,205.26,12.1792]
[1731249684277,5.16123073,205.5,205.26,12.1792]
[1731249684484,15.0283,205.48,205.26,12.1792]
[1731249685084,6.0425,205.47,205.26,12.1792]
[1731249685285,15.0283,205.45,205.21,17.0556]
[1731249685490,6.0425,205.44,205.21,17.0556]
[1731249685683,8.79067733,205.44,205.21,17.0556]
[1731249686198,8.79067733,205.44,205.21,12.1826]
[1731249686704,8.79067733,205.44,205.22,23.776884]
[1731249687290,6.0425,205.43,205.22,23.776884]
[1731249687604,21.0708,205.38,205.15,12.186]
[1731249687777,15.0283,205.36,205.15,12.186]
[1731249687973,6.0425,205.35,205.12,4.8751]
[1731249688218,21.0708,205.34,205.09,22.1892]
[1731249688378,6.0425,205.33,205.09,27.065]
[1731249688581,8.74012177,205.33,205.09,27.165]
[1731249688774,6.0425,205.33,205.09,27.065]
[1731249689179,2.69762177,205.32,205.09,27.065]
[1731249690485,6.0425,205.33,205.09,27.065]
[1731249690882,2.69762177,205.32,205.09,27.065]
[1731249691191,2.69762177,205.32,205.1,23.776884]
[1731249691387,2.69762177,205.32,205.12,23.776884]
[1731249691780,6.0425,205.33,205.17,0.1]
[1731249691981,6.0425,205.33,205.13,20.0]
[1731249691982,6.0425,205.33,205.2,0.1]
[1731249692391,6.0425,205.33,205.18,0.1]
[1731249692593,6.0425,205.33,205.19,0.1]
[1731249693201,6.0425,205.33,205.17,17.059]
[1731249694807,6.0425,205.33,205.18,0.1]
[1731249695016,6.0425,205.33,205.2,0.2]
[1731249695497,15.0283,205.34,205.22,20.0]
[1731249695687,15.0283,205.34,205.24,0.1]
[1731249696008,15.0283,205.34,205.23,0.1]
[1731249696200,15.0283,205.34,205.25,0.2]
[1731249696584,15.0283,205.34,205.25,0.1]
[1731249696899,15.0283,205.34,205.23,0.1]
[1731249697482,15.0283,205.34,205.26,0.2]
[1731249697686,15.0283,205.34,205.24,17.0531]
[1731249698486,15.0283,205.34,205.24,12.1808]
[1731249699281,15.0283,205.34,205.18,17.0577]
[1731249699695,15.0283,205.34,205.18,17.1577]
[1731249699886,15.0283,205.34,205.2,0.1]
[1731249700202,15.0283,205.34,205.22,0.1]
[1731249700410,15.0283,205.34,205.23,0.1]
[1731249700586,15.0283,205.34,205.24,0.1]
[1731249700789,15.0283,205.34,205.25,0.1]
[1731249700989,6.0425,205.4,205.27,0.1]
[1731249701596,6.0425,205.4,205.28,17.0497]
[1731249701786,6.0425,205.4,205.28,17.1497]
[1731249701992,6.0425,205.4,205.29,20.1]
[1731249703089,6.0425,205.4,205.31,0.1]
[1731249703286,6.0425,205.4,205.33,0.1]
[1731249703594,6.0425,205.4,205.28,24.3569]
[1731249703595,6.1028,205.46,205.36,0.1]
[1731249703804,6.1028,205.46,205.37,0.1]
[1731249703990,6.1028,205.46,205.38,0.1]
[1731249704197,6.1028,205.46,205.38,0.2]
[1731249704386,6.1028,205.46,205.35,20.1]
[1731249704900,6.1028,205.46,205.34,17.0448]
[1731249705496,6.1028,205.46,205.34,12.1749]
[1731249708090,25.87409295,205.35,205.34,12.1749]
[1731249708810,6.1028,205.33,205.22,0.1]
[1731249708995,25.87409295,205.23,205.22,4.9728]
[1731249709790,25.87409295,205.24,205.23,0.1]
[1731249710193,25.87409295,205.24,205.23,20.1]
[1731249710404,25.87409295,205.27,205.25,0.1]
[1731249710603,25.87409295,205.28,205.26,0.1]
[1731249710808,25.87409295,205.27,205.26,0.1]
[1731249711019,25.87409295,205.32,205.28,0.1]
[1731249711314,25.87409295,205.33,205.3,0.1]
[1731249711503,25.87409295,205.34,205.31,0.1]
[1731249711700,25.87409295,205.32,205.3,0.1]
[1731249711902,25.87409295,205.32,205.29,0.1]
[1731249712209,31.97689295,205.4,205.24,65.7765]
[1731249712210,25.87409295,205.3,205.27,17.0506]
[1731249712411,25.87409295,205.28,205.27,17.0506]
[1731249713815,25.87409295,205.29,205.27,17.0506]
[1731249714016,25.87409295,205.28,205.27,17.0506]
[1731249714219,25.87409295,205.28,205.27,12.179]
[1731249715491,25.87409295,205.29,205.27,12.179]
[1731249715719,31.97689295,205.4,205.27,12.179]
[1731249715720,25.87409295,205.31,205.28,20.1]
[1731249715919,25.87409295,205.31,205.28,20.2]
[1731249716231,25.87409295,205.29,205.27,17.0506]
[1731249716390,25.87409295,205.28,205.27,17.0506]
[1731249716997,25.87409295,205.28,205.27,37.0506]
[1731249717420,25.87409295,205.3,205.27,61.4087]
[1731249717602,25.87409295,205.32,205.29,0.1]
[1731249717811,31.97689295,205.4,205.29,0.1]
[1731249717812,25.87409295,205.33,205.29,0.1]
[1731249718022,25.87409295,205.37,205.31,0.1]
[1731249718268,25.87409295,205.5,205.31,0.1]
[1731249718269,25.87409295,205.38,205.34,17.0448]
[1731249718519,25.87409295,205.41,205.38,0.1]
[1731249718718,25.87409295,205.43,205.39,0.1]
[1731249718921,25.87409295,205.43,205.38,0.1]
[1731249719124,25.87409295,205.43,205.4,0.1]
[1731249719331,25.87409295,205.45,205.42,0.1]
[1731249719622,6.1028,205.53,205.35,20.0]
[1731249719623,25.87409295,205.48,205.44,0.1]
[1731249720006,25.87409295,205.49,205.44,0.1]
[1731249720207,25.87409295,205.51,205.47,17.034]
[1731249720409,25.87409295,205.5,205.47,17.034]
[1731249720607,25.87409295,205.53,205.49,0.1]
[1731249720833,25.87409295,205.51,205.48,20.1]
[1731249721036,25.87409295,205.51,205.48,20.0]
[1731249721325,31.97689295,205.6,205.49,0.1]
[1731249721503,25.87409295,205.54,205.5,0.2]
[1731249721705,25.87409295,205.55,205.5,0.2]
[1731249721910,25.87409295,205.57,205.52,0.1]
[1731249722117,25.87409295,205.57,205.54,17.0282]
[1731249722316,25.87409295,205.58,205.54,17.1282]
[1731249722509,25.87409295,205.58,205.54,17.0282]
[1731249722813,6.1028,205.8,205.58,0.1]
[1731249723009,25.87409295,205.65,205.6,0.1]
[1731249723443,25.87409295,205.66,205.6,0.1]
[1731249723615,25.87409295,205.67,205.62,0.1]
[1731249724019,25.87409295,205.65,205.6,0.1]
[1731249724337,25.87409295,205.65,205.6,0.2]
[1731249724537,25.87409295,205.65,205.61,37.0224]
[1731249724721,25.87409295,205.65,205.61,37.1224]
[1731249724917,25.87409295,205.62,205.61,37.0224]
[1731249725118,25.87409295,205.62,205.61,17.0224]
[1731249725727,25.87409295,205.64,205.61,17.0224]
[1731249726627,25.87409295,205.63,205.61,12.1589]
[1731249726941,25.87409295,205.64,205.62,20.0]
[1731249727138,25.87409295,205.67,205.62,20.1]
[1731249727336,25.87409295,205.68,205.62,20.2]
[1731249727644,25.87409295,205.66,205.62,20.0]
[1731249727938,25.87409295,205.69,205.63,0.1]
[1731249728146,25.87409295,205.7,205.64,0.1]
[1731249728848,25.87409295,205.71,205.65,41.3322]
[1731249729038,25.87409295,205.7,205.65,41.3322]
[1731249729234,25.87409295,205.68,205.65,17.0191]
[1731249729426,25.87409295,205.66,205.65,17.0191]
[1731249729621,25.87409295,205.66,205.54,17.0282]
[1731249729933,25.87409295,205.58,205.54,17.0282]
[1731249730123,25.87409295,205.61,205.55,0.1]
[1731249730538,25.87409295,205.59,205.54,41.3543]
[1731249731040,25.87409295,205.7,205.56,17.0265]
[1731249731041,16.1156,205.69,205.56,17.0265]
[1731249731257,25.87409295,205.57,205.56,17.0265]
[1731249732235,25.87409295,205.57,205.54,24.3261]
[1731249732430,25.87409295,205.56,205.54,24.3261]
[1731249732648,6.2425,205.64,205.54,24.3261]
[1731249732649,25.87409295,205.58,205.54,24.3261]
[1731249732822,25.87409295,205.59,205.54,24.3261]
[1731249733338,25.87409295,205.63,205.56,0.1]
[1731249733525,25.87409295,205.64,205.57,0.1]
[1731249733716,25.87409295,205.63,205.57,20.1]
[1731249733922,25.87409295,205.64,205.58,20.97218472]
[1731249734122,25.87409295,205.66,205.58,21.07218472]
[1731249734323,25.87409295,205.66,205.59,0.1]
[1731249734524,25.87409295,205.64,205.57,0.1]
[1731249734831,25.87409295,205.58,205.54,24.3261]
[1731249735032,25.87409295,205.55,205.54,24.3261]
[1731249735527,25.87409295,205.55,205.51,41.3604]
[1731249735734,25.87409295,205.52,205.51,41.3604]
[1731249736121,25.87409295,205.53,205.51,41.3604]
[1731249736744,25.87409295,205.54,205.51,41.3604]
[1731249736927,25.87409295,205.52,205.51,41.3604]
[1731249737333,25.87409295,205.52,205.51,12.1648]
[1731249738446,25.87409295,205.52,205.43,24.338]
[1731249738648,25.87409295,205.52,205.44,21.07279248]
[1731249738838,6.3093,205.65,205.51,0.1]
[1731249739025,25.87409295,205.58,205.52,0.97226696]
[1731249739225,25.87409295,205.57,205.52,0.97226696]
[1731249739544,25.87409295,205.57,205.48,0.1]
[1731249739545,25.87409295,205.53,205.46,0.1]
[1731249739841,25.87409295,205.49,205.44,20.0]
[1731249740045,25.87409295,205.48,205.44,20.0]
[1731249740255,25.87409295,205.45,205.4,41.3825]
[1731249740557,25.87409295,205.41,205.4,12.1713]
[1731249742047,25.87409295,205.41,205.36,29.2168]
[1731249742348,25.87409295,205.38,205.36,29.2168]
[1731249742653,25.87409295,205.37,205.36,4.8694]
[1731249743855,25.87409295,205.37,205.29,17.0489]
[1731249744150,25.87409295,205.32,205.29,17.0489]
[1731249744552,25.87409295,205.36,205.29,17.0489]
[1731249744754,25.87409295,205.36,205.3,0.97339121]
[1731249745254,25.87409295,205.32,205.29,17.0489]
[1731249745438,25.87409295,205.3,205.29,17.0489]
[1731249745836,25.87409295,205.3,205.24,24.3612]
[1731249746244,25.87409295,205.28,205.24,24.3612]
[1731249746548,25.87409295,205.25,205.23,17.0539]
[1731249746745,25.87409295,205.26,205.23,17.0539]
[1731249747335,25.87409295,205.26,205.23,22.12044966]
[1731249747653,25.87409295,205.24,205.23,12.1814]
[1731249748834,25.87409295,205.24,205.19,4.8735]
[1731249749157,25.87409295,205.2,205.19,4.8735]
[1731249749746,25.87409295,205.2,205.17,24.369]
[1731249749949,25.87409295,205.18,205.17,24.369]
[1731249753457,25.87409295,205.22,205.18,20.0]
[1731249753668,32.47129295,205.24,205.18,20.0]
[1731249753857,25.87409295,205.24,205.18,20.0]
[1731249754155,25.87409295,205.24,205.19,0.974004]
[1731249754347,25.87409295,205.23,205.19,0.974004]
[1731249755059,25.87409295,205.23,205.2,17.0564]
[1731249756461,25.87409295,205.25,205.2,17.0564]
[1731249756660,25.87409295,205.25,205.2,18.030422]
[1731249757841,25.87409295,205.21,205.2,17.0564]
[1731249758061,25.87409295,205.22,205.2,17.0564]
[1731249758362,25.87409295,205.23,205.2,17.0564]
[1731249758743,15.93857619,205.23,205.2,17.0564]
[1731249759446,15.93857619,205.24,205.2,17.0564]
[1731249759646,15.93857619,205.24,205.21,20.0]
[1731249760364,15.93857619,205.23,205.21,20.0]
[1731249760568,15.93857619,205.22,205.21,20.0]
[1731249761270,15.93857619,205.23,205.2,17.0564]
[1731249761439,15.93857619,205.22,205.19,24.3676]
[1731249761638,15.93857619,205.3,205.19,24.3676]
[1731249761639,15.93857619,205.2,205.19,24.3676]
[1731249763548,15.93857619,205.2,205.17,24.369]
[1731249763742,15.93857619,205.2,205.15,12.1862]
[1731249763743,15.93857619,205.18,205.15,12.1862]
[1731249763961,15.93857619,205.16,205.15,12.1862]
[1731249764862,15.93857619,205.16,205.06,8.23226027]
[1731249764863,31.87715238,205.16,205.06,8.23226027]
[1731249765049,31.87715238,205.1,204.98,0.1]
[1731249765258,31.87715238,205.1,205.06,4.8765]
[1731249765452,31.87715238,205.1,205.05,12.1917]
[1731249765753,31.87715238,205.1,205.07,4.8762]
[1731249766659,15.93857619,205.1,205.08,4.876]
[1731249768273,15.93857619,205.12,205.1,17.0647]
[1731249768863,15.93857619,205.11,205.1,17.0647]
[1731249769068,22.59237619,205.2,205.1,17.0647]
[1731249769069,15.93857619,205.15,205.11,20.0]
[1731249769664,15.93857619,205.14,205.11,20.0]
[1731249769846,15.93857619,205.16,205.11,20.0]
[1731249770046,6.6538,205.2,205.1,17.0647]
[1731249770047,15.93857619,205.13,205.1,17.0647]
[1731249770264,15.93857619,205.11,205.1,17.0647]
[1731249771164,15.93857619,205.14,205.1,17.0647]
[1731249771350,15.93857619,205.13,205.1,17.0647]
[1731249771551,15.93857619,205.12,205.1,17.0647]
[1731249771764,15.93857619,205.15,205.11,20.0]
[1731249771978,15.93857619,205.18,205.11,20.0]
[1731249772264,15.93857619,205.17,205.11,20.0]
[1731249772466,15.93857619,205.17,205.13,20.0]
[1731249772671,15.93857619,205.16,205.13,20.0]
[1731249772872,15.93857619,205.3,205.13,20.1]
[1731249772873,15.93857619,205.18,205.13,20.1]
[1731249773180,15.93857619,205.22,205.13,20.0]
[1731249773351,15.93857619,205.21,205.13,20.0]
[1731249773657,15.93857619,205.2,205.13,20.0]
[1731249773860,15.93857619,205.21,205.13,20.0]
[1731249774260,15.93857619,205.24,205.14,42.40910817]
[1731249774460,15.93857619,205.24,205.15,20.0]
[1731249774662,15.93857619,205.24,205.16,0.9741603]
[1731249775056,15.93857619,205.2,205.15,20.0]
[1731249775258,15.93857619,205.18,205.15,20.0]
[1731249775577,15.93857619,205.17,205.15,20.0]
[1731249776377,15.93857619,205.17,205.16,4.8742]
[1731249776756,15.93857619,205.18,205.16,17.0598]
[1731249777463,15.93857619,205.19,205.16,17.0598]
[1731249777651,15.93857619,205.23,205.17,20.0]
[1731249777848,15.93857619,205.25,205.17,20.97416903]
[1731249778451,15.93857619,205.25,205.18,17.0581]
[1731249778648,15.93857619,205.27,205.19,20.97408834]
[1731249778871,15.93857619,205.23,205.19,20.12]
[1731249779066,15.93857619,205.21,205.19,20.12]
[1731249779266,15.93857619,205.2,205.18,41.4269]
[1731249780052,15.93857619,205.22,205.18,41.4269]
[1731249780256,15.93857619,205.25,205.19,20.0]
[1731249780459,15.9855,205.29,205.2,17.0564]
[1731249780667,15.93857619,205.28,205.21,20.97379493]
[1731249780870,6.6538,205.34,205.21,20.97379493]
[1731249780871,15.93857619,205.26,205.21,20.0]
[1731249781074,15.93857619,205.28,205.21,20.0]
[1731249781282,15.93857619,205.29,205.22,0.9738396]
[1731249781477,15.93857619,205.28,205.22,0.9738396]
[1731249781655,15.93857619,205.28,205.21,20.0]
[1731249782072,15.93857619,205.28,205.21,20.97391282]
[1731249782376,15.93857619,205.34,205.25,0.1]
[1731249782679,15.93857619,205.32,205.27,20.0]
[1731249782864,25.87868388,205.31,205.27,20.0]
[1731249783375,25.87868388,205.33,205.27,20.0]
[1731249783569,25.87868388,205.34,205.27,20.0]
[1731249783883,25.87868388,205.33,205.27,20.0]
[1731249784173,25.87868388,205.32,205.27,20.0]
[1731249784378,25.87868388,205.3,205.27,20.0]
[1731249784562,6.6538,205.37,205.28,17.0497]
[1731249785362,25.87868388,205.3,205.28,17.0497]
[1731249785802,51.75736776,205.3,205.28,12.1784]
[1731249785958,25.87868388,205.29,205.28,17.0497]
[1731249786161,25.87868388,205.31,205.28,17.0497]
[1731249786473,25.87868388,205.35,205.28,41.4066]
[1731249786653,25.87868388,205.35,205.29,20.0]
[1731249786853,25.87868388,205.31,205.29,20.0]
[1731249788764,25.87868388,205.31,205.3,4.8709]
[1731249791472,25.87868388,205.31,205.28,24.3569]
[1731249792683,25.87868388,205.3,205.28,24.3569]
[1731249792870,25.87868388,205.29,205.28,24.3569]
[1731249793063,25.87868388,205.3,205.28,44.3569]
[1731249793267,25.87868388,205.35,205.29,20.0]
[1731249793590,25.87868388,205.36,205.29,20.0]
[1731249794272,15.9855,205.42,205.29,20.1]
[1731249794474,15.9855,205.42,205.3,65.7574]
[1731249794672,15.9855,205.42,205.31,20.0]
[1731249794879,15.9855,205.42,205.3,17.0482]
[1731249795087,16.0855,205.42,205.3,17.0482]
[1731249795269,16.1855,205.42,205.3,12.1773]
[1731249795476,16.0855,205.42,205.3,17.0482]
[1731249795784,0.1,205.4,205.3,17.0482]
[1731249796363,16.0855,205.42,205.3,17.0482]
[1731249796569,15.9855,205.42,205.25,24.3595]
[1731249796784,16.0855,205.42,205.25,21.71497472]
[1731249796975,16.0855,205.42,205.26,20.0]
[1731249797500,15.9855,205.42,205.26,20.0]
[1731249798295,15.9855,205.42,205.26,20.1]
[1731249798472,15.9855,205.42,205.26,20.0]
[1731249798673,15.9855,205.42,205.27,24.3581]
[1731249798873,15.9855,205.42,205.28,20.0]
[1731249800189,15.9855,205.42,205.29,1.07342916]
[1731249800382,6.1812,205.48,205.33,0.2]
[1731249800575,6.1812,205.48,205.35,0.1]
[1731249800888,6.1812,205.53,205.39,0.1]
[1731249801069,6.1812,205.53,205.4,0.97280525]
[1731249801269,6.1812,205.53,205.39,20.0]
[1731249801483,6.1812,205.53,205.39,20.97298484]
[1731249802091,6.1812,205.53,205.41,0.1]
[1731249802593,15.8882,205.55,205.42,41.3784]
[1731249802770,15.8882,205.55,205.43,20.0]
[1731249803490,15.8882,205.55,205.43,20.1]
[1731249803867,6.1812,205.59,205.44,65.7126]
[1731249804190,6.1812,205.59,205.45,20.0]
[1731249805893,6.1812,205.59,205.46,0.97261413]
[1731249806075,15.5819,205.61,205.48,20.0]
[1731249806671,15.5819,205.61,205.48,20.97247025]
[1731249807976,15.5819,205.61,205.49,41.3644]
[1731249808172,15.5819,205.61,205.5,20.0]
[1731249808986,6.3216,205.64,205.5,20.0]
[1731249809577,6.3216,205.64,205.51,0.1]
[1731249809974,15.6225,205.68,205.52,41.3584]
[1731249810174,15.6225,205.68,205.53,20.0]
[1731249810997,15.6225,205.68,205.55,20.0]
[1731249811194,15.6225,205.68,205.53,20.0]
[1731249811379,15.6225,205.68,205.53,49.15]
[1731249811885,15.6225,205.68,205.53,20.0]
[1731249812087,15.6225,205.68,205.54,41.3543]
[1731249812294,0.1,205.67,205.54,41.3543]
[1731249812493,0.1,205.63,205.54,17.0282]
[1731249812997,0.1,205.62,205.45,24.3366]
[1731249813200,0.1,205.59,205.45,24.3366]
[1731249813689,6.0843,205.58,205.45,24.3366]
[1731249814496,15.7225,205.57,205.45,24.3366]
[1731249814695,15.6225,205.57,205.45,24.3366]
[1731249816294,15.6225,205.57,205.46,20.0]
[1731249817171,15.6225,205.57,205.46,20.97261323]
[1731249817371,15.6225,205.57,205.47,41.3684]
[1731249817580,15.6225,205.57,205.48,20.0]
[1731249817776,6.0843,205.58,205.48,20.0]
[1731249818389,15.6225,205.63,205.48,49.25]
[1731249818991,6.0843,205.64,205.51,73.026884]
[1731249819381,6.0843,205.64,205.53,43.776884]
[1731249820099,6.1843,205.64,205.53,23.776884]
[1731249820300,0.1,205.62,205.53,23.776884]
[1731249820481,0.2,205.6,205.52,17.0299]
[1731249820792,15.7225,205.57,205.52,17.0299]
[1731249821407,15.6225,205.57,205.47,24.3344]
[1731249821711,15.7225,205.57,205.47,24.3344]
[1731249822000,15.8225,205.57,205.41,41.3805]
[1731249822306,0.1,205.55,205.41,41.3805]
[1731249822482,0.2,205.55,205.41,41.3805]
[1731249823199,0.2,205.55,205.41,24.3415]
[1731249823783,6.0843,205.56,205.42,29.15]
[1731249823984,6.0843,205.56,205.43,0.97266761]
[1731249824205,15.6225,205.57,205.43,1.07266761]
[1731249824503,15.6225,205.57,205.47,20.0]
[1731249824684,0.2,205.56,205.42,20.0]
[1731249824885,0.1,205.54,205.35,3.5816]
[1731249825188,15.6225,205.57,205.36,36.5211]
[1731249825189,0.1,205.5,205.36,36.5211]
[1731249825884,0.1,205.48,205.36,36.5211]
[1731249826080,0.1,205.52,205.36,36.5211]
[1731249826399,0.1,205.52,205.37,23.776884]
[1731249827113,0.1,205.52,205.33,4.8702]
[1731249827114,16.3701,205.47,205.3,17.0482]
[1731249827293,16.3701,205.47,205.31,0.02917719]
[1731249827995,0.1,205.44,205.31,0.02917719]
[1731249828194,6.3948,205.46,205.3,41.4028]
[1731249828497,0.1,205.42,205.3,41.4028]
[1731249828893,6.1948,205.46,205.3,41.4028]
[1731249828894,0.1,205.43,205.3,41.4028]
[1731249829085,0.1,205.43,205.3,24.3546]
[1731249830206,0.1,205.41,205.3,24.3546]
[1731249830388,0.1,205.42,205.3,24.3546]
[1731249830816,0.1,205.4,205.3,24.3546]
[1731249831001,0.1,205.4,205.24,41.4148]
[1731249831306,0.1,205.4,205.24,36.5425]
[1731249831678,0.1,205.4,205.25,23.776884]
[1731249832106,0.1,205.38,205.24,36.5425]
[1731249832288,21.5402,205.39,205.24,36.5425]
[1731249832996,0.1,205.38,205.24,36.5425]
[1731249833191,21.4402,205.39,205.24,36.5425]
[1731249833705,0.1,205.38,205.25,43.776884]
[1731249834286,0.1,205.38,205.27,23.776884]
[1731249834605,21.5402,205.39,205.27,23.776884]
[1731249834803,0.1,205.38,205.27,23.776884]
[1731249835003,21.4402,205.39,205.27,23.776884]
[1731249835702,0.1,205.38,205.27,23.776884]
[1731249835909,0.1,205.35,205.26,17.0514]
[1731249836205,0.1,205.35,205.21,24.3652]
[1731249836206,0.1,205.34,205.21,24.3652]
[1731249836415,0.1,205.34,205.17,17.059]
[1731249836416,0.1,205.3,205.17,17.059]
[1731249836590,0.1,205.28,205.17,17.059]
[1731249836908,0.1,205.26,205.17,17.059]
[1731249837486,15.2454,205.23,205.17,17.059]
[1731249837705,0.1,205.21,205.15,4.8743]
[1731249838017,0.1,205.17,205.12,12.1876]
[1731249838805,0.1,205.18,205.09,27.0654]
[1731249839010,0.1,205.2,205.09,27.0654]
[1731249839305,6.1948,205.22,205.09,27.0654]
[1731249839498,0.1,205.21,205.09,27.0654]
[1731249840202,0.1,205.21,205.09,10.0]
[1731249840203,0.1,205.19,205.09,10.0]
[1731249840404,6.1948,205.22,205.09,10.0]
[1731249840704,0.1,205.21,205.09,10.0]
[1731249840903,6.1948,205.22,205.09,10.0]
[1731249841112,0.1,205.21,205.09,10.0]
[1731249841287,6.1948,205.22,205.09,10.0]